[Event "VII Lorca Open 2018"]
[Site "Lorca"]
[Date "2018.12.30"]
[Round "8"]
[White "Pap, Misa"]
[Black "Domingo Nunez, Alejandro"]
[Result "1-0"]
[ECO "C06"]
[WhiteElo "2480"]
[BlackElo "2404"]
[Annotator "ChessBase"]
[PlyCount "79"]
[EventDate "2018.12.26"]
[EventType "swiss"]
[EventCountry "ESP"]
[SourceTitle "playchess.com"]
[Source "ChessBase"]
[SourceQuality "1"]
[TimeControl "5400+30"]

1. e4 {[%emt 0:00:00]} e6 {[%emt 0:00:07]} 2. d4 {[%emt 0:00:00]} d5 {[%emt 0:00:03]} 3. Nd2 {[%emt 0:00:17]} Be7 {[%emt 0:00:03]} 4. Ngf3 {[%emt 0:00:24]} Nf6 {[%emt 0:00:21]} 5. e5 {[%emt 0:00:05]} Nfd7 {[%emt 0:00:04]} 6. Bd3 {[%emt 0:00:28]} c5 {[%emt 0:00:06]} 7. c3 {[%emt 0:00:05]} Nc6 {[%emt 0:00:14]} 8. O-O {[%emt 0:00:18]} g5 {[%emt 0:00:10]} 9. dxc5 {[%emt 0:00:07]} g4 {[%emt 0:00:20]} 10. Nd4 {[%emt 0:00:11]} Ndxe5 {[%emt 0:00:32]} 11. Bb5 {[%emt 0:00:38]} Bd7 {[%emt 0:01:29]} 12. N2b3 {[%emt 0:00:21]} h5 {[%emt 0:04:59]} 13. Re1 {[%emt 0:00:38]} Ng6 {[%emt 0:14:14]} 14. Bd3 {[%emt 0:21:11]} Rg8 {[%emt 0:10:14]} 15. Bxg6 {[%emt 0:11:28]} Rxg6 {[%emt 0:01:02]} 16. Bf4 {[%emt 0:03:04]} Kf8 {[%emt 0:11:30]} 17. Qd3 {[%emt 0:06:30]} Kg7 {[%emt 0:08:53]} 18. Rad1 {[%emt 0:08:17]} Bf6 {[%emt 0:16:40]} 19. c4 {[%emt 0:04:31]} Ne7 {[%emt 0:01:08]} 20. Be5 {[%emt 0:08:25]} dxc4 {[%emt 0:01:09]} 21. Bxf6+ {[%emt 0:00:56]} Rxf6 {[%emt 0:00:07]} 22. Qxc4 {[%emt 0:00:34]} Qc7 {[%emt 0:00:16]} 23. Nd2 {[%emt 0:06:35]} a6 {[%emt 0:19:25]} 24. Ne4 {[%emt 0:00:26]} Rg6 {[%emt 0:00:03]} 25. Qc3 {[%emt 0:04:01]} Kg8 {[%emt 0:01:30]} 26. Nc2 {[%emt 0:11:05]} Nd5 {[%emt 0:05:16]} 27. Rxd5 {[%emt 0:02:24]} exd5 {[%emt 0:00:02]} 28. Nf6+ {[%emt 0:00:08]} Rxf6 {[%emt 0:01:50]} 29. Qxf6 {[%emt 0:00:06]} Re8 {[%emt 0:00:39]} 30. Qg5+ {[%emt 0:02:11]} Kf8 {[%emt 0:00:07]} 31. Qh6+ {[%emt 0:00:19]} Kg8 {[%emt 0:00:12]} 32. Rxe8+ {[%emt 0:00:29]} Bxe8 {[%emt 0:00:04]} 33. Qxh5 {[%emt 0:02:10]} Qxc5 {[%emt 0:00:16]} 34. Qxg4+ {[%emt 0:00:06]} Kh7 {[%emt 0:00:28]} 35. Qh3+ {[%emt 0:01:40]} Kg8 {[%emt 0:00:24]} 36. Qc3 {[%emt 0:00:19]} Qe7 {[%emt 0:01:28]} 37. Nd4 {[%emt 0:00:14]} Qe4 {[%emt 0:00:05]} 38. h3 {[%emt 0:01:10]} Qb1+ {[%emt 0:00:45]} 39. Kh2 {[%emt 0:00:08]} Qxa2 {[%emt 0:00:02]} 40. Nf5 {[%emt 0:00:22]} 1-0

[Event "VII Lorca Open 2018"]
[Site "Lorca"]
[Date "2018.12.30"]
[Round "8"]
[White "Nayhebaver, Martin"]
[Black "Valmana Canto, Jaime"]
[Result "0-1"]
[ECO "C07"]
[WhiteElo "2460"]
[BlackElo "2359"]
[Annotator "ChessBase"]
[PlyCount "142"]
[EventDate "2018.12.26"]
[EventType "swiss"]
[EventCountry "ESP"]
[SourceTitle "playchess.com"]
[Source "ChessBase"]
[SourceQuality "1"]
[TimeControl "5400+30"]

1. e4 {[%emt 0:00:00]} e6 {[%emt 0:08:55]} 2. d4 {[%emt 0:00:00]} d5 {[%emt 0:00:14]} 3. Nd2 {[%emt 0:00:21]} c5 {[%emt 0:00:18]} 4. exd5 {[%emt 0:00:24]} Qxd5 {[%emt 0:00:11]} 5. Ngf3 {[%emt 0:00:05]} cxd4 {[%emt 0:00:10]} 6. Bc4 {[%emt 0:00:23]} Qd6 {[%emt 0:00:09]} 7. O-O {[%emt 0:00:22]} Nf6 {[%emt 0:00:09]} 8. Nb3 {[%emt 0:00:40]} Nc6 {[%emt 0:00:08]} 9. Nbxd4 {[%emt 0:00:31]} Nxd4 {[%emt 0:00:10]} 10. Nxd4 {[%emt 0:00:05]} a6 {[%emt 0:00:07]} 11. Re1 {[%emt 0:00:25]} Qc7 {[%emt 0:00:12]} 12. Qe2 {[%emt 0:00:33]} Bc5 {[%emt 0:08:06]} 13. c3 {[%emt 0:02:50]} h6 {[%emt 0:11:42]} 14. Bb3 {[%emt 0:07:15]} Bd7 {[%emt 0:03:01]} 15. Qf3 {[%emt 0:08:30]} O-O-O {[%emt 0:16:23]} 16. Bf4 {[%emt 0:02:24]} Bd6 {[%emt 0:01:14]} 17. Bxd6 {[%emt 0:01:35]} Qxd6 {[%emt 0:00:05]} 18. a4 {[%emt 0:02:47]} h5 {[%emt 0:07:13]} 19. h3 {[%emt 0:10:06]} h4 {[%emt 0:00:55]} 20. Qe3 {[%emt 0:03:05]} Bc6 {[%emt 0:10:00]} 21. Nxc6 {[%emt 0:03:24]} Qxc6 {[%emt 0:00:08]} 22. Bd1 {[%emt 0:01:37]} Nd5 {[%emt 0:00:53]} 23. Qg5 {[%emt 0:01:24]} Qc7 {[%emt 0:01:34]} 24. Bf3 {[%emt 0:16:57]} f6 {[%emt 0:06:20]} 25. Qc1 {[%emt 0:10:23]} Nf4 {[%emt 0:04:02]} 26. Qc2 {[%emt 0:00:03]} Rd3 {[%emt 0:01:08]} 27. Re3 {[%emt 0:03:48]} Rhd8 {[%emt 0:01:03]} 28. Qb3 {[%emt 0:03:47]} Kb8 {[%emt 0:04:45]} 29. a5 {[%emt 0:00:43]} e5 {[%emt 0:01:59]} 30. Ra4 {[%emt 0:01:29]} Rxe3 {[%emt 0:07:31]} 31. fxe3 {[%emt 0:00:02]} Nd3 {[%emt 0:00:01]} 32. Rc4 {[%emt 0:01:43]} Qe7 {[%emt 0:00:32]} 33. Be4 {[%emt 0:01:38]} f5 {[%emt 0:02:39]} 34. Bxd3 {[%emt 0:07:31]} Rxd3 {[%emt 0:00:02]} 35. Qb6 {[%emt 0:00:11]} Rd1+ {[%emt 0:03:38]} 36. Kh2 {[%emt 0:00:44]} e4 {[%emt 0:00:34]} 37. Qc5 {[%emt 0:01:20]} Qxc5 {[%emt 0:00:12]} 38. Rxc5 {[%emt 0:00:01]} g6 {[%emt 0:00:01]} 39. Re5 {[%emt 0:00:19]} Kc7 {[%emt 0:00:42]} 40. Re6 {[%emt 0:02:39]} g5 {[%emt 0:00:51]} 41. Rg6 {[%emt 0:01:41]} f4 {[%emt 0:00:15]} 42. Re6 {[%emt 0:00:03]} f3 {[%emt 0:01:17]} 43. gxf3 {[%emt 0:00:44]} exf3 {[%emt 0:00:13]} 44. Rf6 {[%emt 0:00:11]} Rd2+ {[%emt 0:01:14]} 45. Kg1 {[%emt 0:00:01]} Rg2+ {[%emt 0:00:29]} 46. Kh1 {[%emt 0:00:31]} Rg3 {[%emt 0:00:02]} 47. Kh2 {[%emt 0:00:04]} Rg2+ {[%emt 0:00:11]} 48. Kh1 {[%emt 0:00:01]} Rg3 {[%emt 0:00:01]} 49. Kh2 {[%emt 0:00:30]} Kd7 {[%emt 0:00:17]} 50. e4 {[%emt 0:02:29]} Ke7 {[%emt 0:00:02]} 51. e5 {[%emt 0:00:04]} Rg2+ {[%emt 0:00:06]} 52. Kh1 {[%emt 0:00:01]} Rg3 {[%emt 0:00:55]} 53. Kh2 {[%emt 0:00:14]} Rg2+ {[%emt 0:00:01]} 54. Kh1 {[%emt 0:00:20]} Rxb2 {[%emt 0:00:02]} 55. Rxf3 {[%emt 0:00:58]} Ke6 {[%emt 0:00:01]} 56. Kg1 {[%emt 0:01:07]} Rb5 {[%emt 0:01:19]} 57. Rf6+ {[%emt 0:00:04]} Kxe5 {[%emt 0:00:08]} 58. Rf7 {[%emt 0:00:14]} Ke4 {[%emt 0:01:29]} 59. Kg2 {[%emt 0:01:58]} Rb2+ {[%emt 0:01:41]} 60. Kg1 {[%emt 0:00:01]} Rb5 {[%emt 0:00:11]} 61. Kg2 {[%emt 0:00:01]} Rb2+ {[%emt 0:00:32]} 62. Kg1 {[%emt 0:00:01]} Kd3 {[%emt 0:00:01]} 63. Rc7 {[%emt 0:00:38]} Rb5 {[%emt 0:00:25]} 64. Kg2 {[%emt 0:00:31]} Rxa5 {[%emt 0:00:06]} 65. Rxb7 {[%emt 0:00:04]} Kxc3 {[%emt 0:00:12]} 66. Kf3 {[%emt 0:00:03]} Rb5 {[%emt 0:00:32]} 67. Re7 {[%emt 0:01:26]} a5 {[%emt 0:00:08]} 68. Re4 {[%emt 0:02:42]} Kb3 {[%emt 0:00:17]} 69. Re3+ {[%emt 0:00:11]} Kb2 {[%emt 0:00:06]} 70. Re2+ {[%emt 0:00:15]} Ka3 {[%emt 0:00:04]} 71. Kg4 {[%emt 0:00:23]} a4 {[%emt 0:00:10]} 0-1

[Event "VII Lorca Open 2018"]
[Site "Lorca"]
[Date "2018.12.30"]
[Round "8"]
[White "Morozov, Nichita"]
[Black "Sanchez Jerez, Emilio Miguel"]
[Result "1-0"]
[ECO "D31"]
[WhiteElo "2439"]
[BlackElo "2193"]
[Annotator "NA RC"]
[PlyCount "59"]
[EventDate "2018.12.26"]
[EventType "swiss"]
[EventCountry "ESP"]
[SourceTitle "playchess.com"]
[Source "ChessBase"]
[SourceQuality "1"]
[TimeControl "5400+30"]

1. d4 {[%emt 0:00:49]} e6 {[%emt 0:00:00]} 2. c4 {[%emt 0:00:08]} d5 {[%emt 0:00:00]} 3. Nf3 {[%emt 0:00:08]} a6 {[%emt 0:00:00]} 4. cxd5 {[%emt 0:00:17]} exd5 {[%emt 0:00:00]} 5. Nc3 {[%emt 0:00:04]} c6 {[%emt 0:00:03]} 6. Qb3 {[%emt 0:00:23]} Nf6 {[%emt 0:00:14]} 7. Bg5 {[%emt 0:00:03]} Be7 {[%emt 0:00:11]} 8. e3 {[%emt 0:00:02]} Nbd7 {[%emt 0:00:54]} 9. Bd3 {[%emt 0:00:04]} h6 {[%emt 0:00:49]} 10. Bh4 {[%emt 0:00:03]} O-O {[%emt 0:00:23]} 11. O-O {[%emt 0:00:04]} Ne4 {[%emt 0:01:20]} 12. Bxe7 {[%emt 0:00:19]} Qxe7 {[%emt 0:00:07]} 13. a3 {[%emt 0:03:14]} Ndf6 {[%emt 0:05:30]} 14. Qc2 {[%emt 0:00:12]} Nd6 {[%emt 0:11:06]} 15. Nd2 {[%emt 0:05:22]} g6 {[%emt 0:01:26]} 16. Rae1 {[%emt 0:01:46]} Bf5 {[%emt 0:03:15]} 17. f3 {[%emt 0:00:17]} Bxd3 {[%emt 0:03:10]} 18. Qxd3 {[%emt 0:00:02]} Rad8 {[%emt 0:09:31]} 19. e4 {[%emt 0:00:33]} dxe4 {[%emt 0:01:44]} 20. fxe4 {[%emt 0:00:02]} Nb5 {[%emt 0:07:55]} 21. Nxb5 {[%emt 0:00:06]} axb5 {[%emt 0:00:18]} 22. e5 {[%emt 0:00:25]} Nd5 {[%emt 0:06:47]} 23. Ne4 {[%emt 0:01:02]} Kg7 {[%emt 0:08:52]} 24. Qg3 {[%emt 0:05:05]} Nc7 {[%emt 0:07:33]} 25. Nd6 {[%emt 0:00:41]} Qg5 {[%emt 0:01:01]} 26. Qf2 {[%emt 0:03:18]} b6 {[%emt 0:17:58]} 27. Nxf7 {[%emt 0:05:08]} Qg4 {[%emt 0:06:07]} 28. Qf6+ {[%emt 0:00:44]} Kh7 {[%emt 0:00:01]} 29. Rf4 {[%emt 0:01:45]} Qe6 {[%emt 0:01:05]} 30. Nxd8 {[%emt 0:00:03]} 1-0

[Event "VII Lorca Open 2018"]
[Site "Lorca"]
[Date "2018.12.30"]
[Round "8"]
[White "Solozhenkin, Evgeniy"]
[Black "Gines Esteo, Pedro Antonio"]
[Result "0-1"]
[ECO "A89"]
[WhiteElo "2427"]
[BlackElo "2339"]
[Annotator "NA"]
[PlyCount "150"]
[EventDate "2018.12.26"]
[EventType "swiss"]
[EventCountry "ESP"]
[SourceTitle "playchess.com"]
[Source "ChessBase"]
[SourceQuality "1"]
[TimeControl "5400+30"]

1. d4 {[%emt 0:00:00]} f5 {[%emt 0:03:33]} 2. g3 {[%emt 0:00:12]} Nf6 {[%emt 0:00:09]} 3. Bg2 {[%emt 0:00:02]} g6 {[%emt 0:00:08]} 4. Nf3 {[%emt 0:00:17]} Bg7 {[%emt 0:00:07]} 5. O-O {[%emt 0:00:16]} O-O {[%emt 0:00:06]} 6. c4 {[%emt 0:00:06]} d6 {[%emt 0:00:11]} 7. Nc3 {[%emt 0:00:04]} Nc6 {[%emt 0:01:43]} 8. d5 {[%emt 0:06:31]} Ne5 {[%emt 0:01:00]} 9. Nxe5 {[%emt 0:00:07]} dxe5 {[%emt 0:00:05]} 10. Qb3 {[%emt 0:05:13]} e6 {[%emt 0:05:02]} 11. Rd1 {[%emt 0:15:17]} exd5 {[%emt 0:03:56]} 12. cxd5 {[%emt 0:04:11]} Kh8 {[%emt 0:02:38]} 13. Be3 {[%emt 0:01:54]} Ne8 {[%emt 0:01:34]} 14. Rac1 {[%emt 0:07:37]} a6 {[%emt 0:01:05]} 15. Na4 {[%emt 0:01:01]} Nd6 {[%emt 0:01:42]} 16. Nc5 {[%emt 0:00:22]} Qe7 {[%emt 0:07:51]} 17. Bd2 {[%emt 0:08:09]} e4 {[%emt 0:20:13]} 18. a4 {[%emt 0:05:17]} a5 {[%emt 0:10:51]} 19. f3 {[%emt 0:09:57]} Re8 {[%emt 0:12:30]} 20. fxe4 {[%emt 0:01:06]} fxe4 {[%emt 0:03:42]} 21. Bf4 {[%emt 0:05:05]} g5 {[%emt 0:03:18]} 22. Bxd6 {[%emt 0:01:51]} cxd6 {[%emt 0:01:42]} 23. Nxe4 {[%emt 0:00:04]} Bf5 {[%emt 0:00:04]} 24. Rc4 {[%emt 0:00:16]} Rac8 {[%emt 0:01:23]} 25. Rxc8 {[%emt 0:08:43]} Rxc8 {[%emt 0:00:02]} 26. Qf3 {[%emt 0:06:17]} Bxe4 {[%emt 0:06:40]} 27. Qxe4 {[%emt 0:00:05]} Qxe4 {[%emt 0:00:08]} 28. Bxe4 {[%emt 0:00:04]} Rc4 {[%emt 0:01:06]} 29. Bd3 {[%emt 0:04:46]} Rxa4 {[%emt 0:01:18]} 30. Rc1 {[%emt 0:00:00]} Bd4+ {[%emt 0:00:24]} 31. Kg2 {[%emt 0:00:06]} Rb4 {[%emt 0:00:04]} 32. Rc7 {[%emt 0:06:15]} Bxb2 {[%emt 0:02:30]} 33. h4 {[%emt 0:00:06]} gxh4 {[%emt 0:01:23]} 34. Rxh7+ {[%emt 0:00:14]} Kg8 {[%emt 0:00:01]} 35. Rxh4 {[%emt 0:00:05]} Rb3 {[%emt 0:05:57]} 36. Bc2 {[%emt 0:00:05]} Rc3 {[%emt 0:00:52]} 37. Bh7+ {[%emt 0:00:24]} Kg7 {[%emt 0:00:12]} 38. Bd3 {[%emt 0:00:03]} Rxd3 {[%emt 0:01:46]} 39. exd3 {[%emt 0:00:04]} b5 {[%emt 0:00:07]} 40. Kf3 {[%emt 0:04:32]} a4 {[%emt 0:00:39]} 41. Rb4 {[%emt 0:00:04]} a3 {[%emt 0:00:06]} 42. Rxb5 {[%emt 0:00:02]} a2 {[%emt 0:00:26]} 43. Rxb2 {[%emt 0:00:02]} a1=Q {[%emt 0:00:10]} 44. Rf2 {[%emt 0:02:08]} Qf6+ {[%emt 0:02:09]} 45. Kg2 {[%emt 0:00:59]} Qd4 {[%emt 0:00:05]} 46. Rf3 {[%emt 0:00:04]} Qxd5 {[%emt 0:00:07]} 47. Kf2 {[%emt 0:01:10]} Qd4+ {[%emt 0:00:46]} 48. Ke2 {[%emt 0:00:15]} Kg6 {[%emt 0:00:08]} 49. Rf4 {[%emt 0:00:27]} Qd5 {[%emt 0:00:59]} 50. Rg4+ {[%emt 0:00:23]} Kf5 {[%emt 0:00:33]} 51. Rf4+ {[%emt 0:00:07]} Kg5 {[%emt 0:00:17]} 52. Re4 {[%emt 0:00:34]} Qa2+ {[%emt 0:00:14]} 53. Kf3 {[%emt 0:00:42]} Qf7+ {[%emt 0:01:39]} 54. Ke3 {[%emt 0:01:47]} Qf1 {[%emt 0:00:06]} 55. Kd4 {[%emt 0:00:59]} Qg1+ {[%emt 0:01:22]} 56. Kd5 {[%emt 0:00:20]} Qxg3 {[%emt 0:00:27]} 57. Re6 {[%emt 0:00:24]} Qxd3+ {[%emt 0:00:39]} 58. Kc6 {[%emt 0:00:03]} Qa6+ {[%emt 0:00:16]} 59. Kd5 {[%emt 0:00:07]} Qd3+ {[%emt 0:00:02]} 60. Kc6 {[%emt 0:00:06]} Kf5 {[%emt 0:00:39]} 61. Rxd6 {[%emt 0:00:03]} Qc4+ {[%emt 0:00:12]} 62. Kd7 {[%emt 0:00:09]} Qb3 {[%emt 0:01:01]} 63. Rh6 {[%emt 0:00:52]} Qf7+ {[%emt 0:00:33]} 64. Kc6 {[%emt 0:00:07]} Qe8+ {[%emt 0:00:13]} 65. Kb7 {[%emt 0:00:35]} Qe7+ {[%emt 0:00:51]} 66. Kc6 {[%emt 0:00:36]} Qe8+ {[%emt 0:00:23]} 67. Kb7 {[%emt 0:00:11]} Ke5 {[%emt 0:00:10]} 68. Rh2 {[%emt 0:01:02]} Qd7+ {[%emt 0:00:50]} 69. Kb8 {[%emt 0:00:18]} Qd6+ {[%emt 0:00:37]} 70. Kb7 {[%emt 0:00:11]} Qd5+ {[%emt 0:00:06]} 71. Kb8 {[%emt 0:00:13]} Kd6 {[%emt 0:00:29]} 72. Rh6+ {[%emt 0:00:19]} Kc5 {[%emt 0:00:15]} 73. Ka7 {[%emt 0:02:20]} Qf7+ {[%emt 0:01:15]} 74. Ka6 {[%emt 0:00:09]} Qa2+ {[%emt 0:00:24]} 75. Kb7 {[%emt 0:00:06]} Qg2+ {[%emt 0:00:20]} 0-1

[Event "VII Lorca Open 2018"]
[Site "Lorca"]
[Date "2018.12.30"]
[Round "8"]
[White "Sabuk, Piotr"]
[Black "Salvador Lopez, Daniel"]
[Result "1/2-1/2"]
[ECO "D90"]
[WhiteElo "2391"]
[BlackElo "2177"]
[Annotator "NA"]
[PlyCount "74"]
[EventDate "2018.12.26"]
[EventType "swiss"]
[EventCountry "ESP"]
[SourceTitle "playchess.com"]
[Source "ChessBase"]
[SourceQuality "1"]
[TimeControl "5400+30"]

1. d4 {[%emt 0:00:00]} Nf6 {[%emt 0:08:21]} 2. c4 {[%emt 0:00:00]} g6 {[%emt 0:00:06]} 3. Nc3 {[%emt 0:00:00]} d5 {[%emt 0:06:23]} 4. Nf3 {[%emt 0:00:15]} Bg7 {[%emt 0:00:32]} 5. h4 {[%emt 0:00:11]} h6 {[%emt 0:03:22]} 6. Bf4 {[%emt 0:05:45]} c6 {[%emt 0:02:32]} 7. e3 {[%emt 0:01:09]} Qb6 {[%emt 0:03:30]} 8. Qb3 {[%emt 0:04:14]} Be6 {[%emt 0:03:35]} 9. c5 {[%emt 0:01:28]} Qxb3 {[%emt 0:00:41]} 10. axb3 {[%emt 0:00:05]} O-O {[%emt 0:04:20]} 11. b4 {[%emt 0:01:18]} Nfd7 {[%emt 0:02:07]} 12. Bd3 {[%emt 0:10:41]} Bg4 {[%emt 0:06:22]} 13. Nh2 {[%emt 0:04:46]} Bf5 {[%emt 0:01:01]} 14. Bxf5 {[%emt 0:01:23]} gxf5 {[%emt 0:00:07]} 15. g4 {[%emt 0:03:08]} fxg4 {[%emt 0:01:11]} 16. Nxg4 {[%emt 0:00:30]} f5 {[%emt 0:02:06]} 17. Ne5 {[%emt 0:14:55]} Nxe5 {[%emt 0:01:16]} 18. Bxe5 {[%emt 0:03:41]} Bxe5 {[%emt 0:00:22]} 19. dxe5 {[%emt 0:00:01]} f4 {[%emt 0:01:36]} 20. Rg1+ {[%emt 0:11:21]} Kh7 {[%emt 0:00:54]} 21. O-O-O {[%emt 0:01:04]} fxe3 {[%emt 0:09:08]} 22. fxe3 {[%emt 0:00:27]} a5 {[%emt 0:01:02]} 23. b5 {[%emt 0:01:54]} Nd7 {[%emt 0:04:36]} 24. Nxd5 {[%emt 0:03:02]} cxd5 {[%emt 0:03:04]} 25. Rxd5 {[%emt 0:00:32]} Rac8 {[%emt 0:01:33]} 26. Rxd7 {[%emt 0:00:24]} Rxc5+ {[%emt 0:00:08]} 27. Kb1 {[%emt 0:11:58]} Rxe5 {[%emt 0:00:11]} 28. Rxb7 {[%emt 0:00:08]} Rxe3 {[%emt 0:00:39]} 29. Rb6 {[%emt 0:02:06]} Rf6 {[%emt 0:09:40]} 30. Rxf6 {[%emt 0:01:01]} exf6 {[%emt 0:00:16]} 31. Kc2 {[%emt 0:04:26]} Re5 {[%emt 0:02:22]} 32. b6 {[%emt 0:00:12]} Rb5 {[%emt 0:00:19]} 33. Ra1 {[%emt 0:00:28]} Kg6 {[%emt 0:00:47]} 34. b7 {[%emt 0:00:13]} Rxb7 {[%emt 0:00:34]} 35. Rxa5 {[%emt 0:00:32]} f5 {[%emt 0:02:21]} 36. Ra6+ {[%emt 0:04:27]} Kh5 {[%emt 0:00:28]} 37. Rf6 {[%emt 0:01:36]} Kxh4 {[%emt 0:00:12]} 1/2-1/2

[Event "VII Lorca Open 2018"]
[Site "Lorca"]
[Date "2018.12.30"]
[Round "8"]
[White "Suarez Uriel, Adrian"]
[Black "Jimenez Ruano, Adrian"]
[Result "1-0"]
[ECO "C54"]
[WhiteElo "2386"]
[BlackElo "2245"]
[Annotator "NA"]
[PlyCount "71"]
[EventDate "2018.12.26"]
[EventType "swiss"]
[EventCountry "ESP"]
[SourceTitle "playchess.com"]
[Source "ChessBase"]
[SourceQuality "1"]
[TimeControl "5400+30"]

1. e4 {[%emt 0:04:08]} e5 {[%emt 0:00:00]} 2. Nf3 {[%emt 0:00:03]} Nc6 {[%emt 0:00:00]} 3. Bc4 {[%emt 0:00:04]} Bc5 {[%emt 0:00:00]} 4. O-O {[%emt 0:00:08]} Nf6 {[%emt 0:00:09]} 5. d3 {[%emt 0:00:05]} d6 {[%emt 0:05:20]} 6. c3 {[%emt 0:00:14]} h6 {[%emt 0:01:42]} 7. Bb3 {[%emt 0:00:07]} a6 {[%emt 0:01:58]} 8. Re1 {[%emt 0:00:08]} Ba7 {[%emt 0:00:38]} 9. Nbd2 {[%emt 0:00:45]} g5 {[%emt 0:02:57]} 10. Nc4 {[%emt 0:16:58]} g4 {[%emt 0:01:14]} 11. Nfd2 {[%emt 0:00:02]} Kf8 {[%emt 0:05:05]} 12. Nf1 {[%emt 0:00:47]} h5 {[%emt 0:02:36]} 13. Be3 {[%emt 0:01:05]} b5 {[%emt 0:00:01]} 14. Ncd2 {[%emt 0:00:42]} Bxe3 {[%emt 0:04:42]} 15. Nxe3 {[%emt 0:00:34]} h4 {[%emt 0:04:49]} 16. Ndf1 {[%emt 0:14:04]} Ne7 {[%emt 0:07:36]} 17. d4 {[%emt 0:03:08]} Ng6 {[%emt 0:01:40]} 18. Bc2 {[%emt 0:21:00]} Rh5 {[%emt 0:18:48]} 19. Nf5 {[%emt 0:00:28]} exd4 {[%emt 0:10:20]} 20. cxd4 {[%emt 0:05:11]} d5 {[%emt 0:04:14]} 21. e5 {[%emt 0:01:53]} Bxf5 {[%emt 0:01:30]} 22. exf6 {[%emt 0:00:05]} Bxc2 23. Qxc2 {[%emt 0:00:01]} Qxf6 {[%emt 0:08:39]} 24. Qxc7 {[%emt 0:05:04]} Qxd4 {[%emt 0:04:44]} 25. Rad1 {[%emt 0:02:06]} Qxb2 {[%emt 0:08:56]} 26. Ne3 {[%emt 0:00:09]} Qe5 {[%emt 0:01:05]} 27. Qc1 {[%emt 0:00:09]} g3 {[%emt 0:02:16]} 28. fxg3 {[%emt 0:00:38]} Qd6 {[%emt 0:01:14]} 29. g4 {[%emt 0:00:21]} Re5 {[%emt 0:00:35]} 30. Nf5 {[%emt 0:00:59]} Rxe1+ {[%emt 0:00:37]} 31. Rxe1 {[%emt 0:00:02]} Qf4 {[%emt 0:01:05]} 32. Qc5+ {[%emt 0:00:46]} Kg8 {[%emt 0:00:00]} 33. Qxd5 {[%emt 0:00:17]} Rc8 {[%emt 0:00:37]} 34. Qd1 {[%emt 0:04:05]} Qg5 {[%emt 0:01:01]} 35. Qd4 {[%emt 0:01:39]} f6 {[%emt 0:00:47]} 36. Qd7 {[%emt 0:20:05]} 1-0

[Event "VII Lorca Open 2018"]
[Site "Lorca"]
[Date "2018.12.30"]
[Round "8"]
[White "Serarols Mabras, Bernat"]
[Black "Alonso Garcia, Aaron"]
[Result "1-0"]
[ECO "E06"]
[WhiteElo "2371"]
[BlackElo "2274"]
[Annotator "NA"]
[PlyCount "141"]
[EventDate "2018.12.26"]
[EventType "swiss"]
[EventCountry "ESP"]
[SourceTitle "playchess.com"]
[Source "ChessBase"]
[SourceQuality "1"]
[TimeControl "5400+30"]

1. d4 {[%emt 0:00:00]} Nf6 {[%emt 0:00:00]} 2. c4 {[%emt 0:00:00]} e6 {[%emt 0:00:00]} 3. g3 {[%emt 0:00:02]} d5 {[%emt 0:03:41]} 4. Bg2 {[%emt 0:00:09]} Be7 {[%emt 0:01:49]} 5. Nf3 {[%emt 0:00:09]} O-O {[%emt 0:00:17]} 6. O-O {[%emt 0:00:09]} c6 {[%emt 0:02:26]} 7. Qc2 {[%emt 0:02:27]} dxc4 {[%emt 0:05:32]} 8. Qxc4 {[%emt 0:01:24]} b6 {[%emt 0:06:39]} 9. Rd1 {[%emt 0:16:30]} Ba6 {[%emt 0:00:21]} 10. Qc2 {[%emt 0:00:18]} Qc8 {[%emt 0:05:24]} 11. e4 {[%emt 0:06:38]} c5 {[%emt 0:12:20]} 12. d5 {[%emt 0:05:03]} exd5 {[%emt 0:03:37]} 13. e5 {[%emt 0:09:24]} Ne8 {[%emt 0:01:19]} 14. Nc3 {[%emt 0:05:46]} Nc7 {[%emt 0:02:57]} 15. Bg5 {[%emt 0:09:44]} Qe6 {[%emt 0:05:23]} 16. Bxe7 {[%emt 0:10:41]} Qxe7 {[%emt 0:00:01]} 17. Nxd5 {[%emt 0:00:14]} Nxd5 {[%emt 0:00:02]} 18. Rxd5 {[%emt 0:00:11]} Bb7 {[%emt 0:04:35]} 19. Rd6 {[%emt 0:00:53]} Nc6 {[%emt 0:06:54]} 20. Qd2 {[%emt 0:09:04]} Rad8 {[%emt 0:09:28]} 21. Rd1 {[%emt 0:01:59]} Ba8 {[%emt 0:07:08]} 22. Qf4 {[%emt 0:05:24]} Rxd6 {[%emt 0:06:17]} 23. exd6 {[%emt 0:03:23]} Qf6 {[%emt 0:00:17]} 24. Qxf6 {[%emt 0:05:06]} gxf6 {[%emt 0:00:01]} 25. d7 {[%emt 0:02:42]} Rd8 {[%emt 0:05:12]} 26. Bh3 {[%emt 0:00:41]} Kf8 {[%emt 0:01:36]} 27. a3 {[%emt 0:00:50]} Nb8 {[%emt 0:01:25]} 28. Nh4 {[%emt 0:00:07]} Bc6 {[%emt 0:00:12]} 29. Bf5 {[%emt 0:02:17]} h6 {[%emt 0:01:27]} 30. Bg4 {[%emt 0:00:24]} Bxd7 {[%emt 0:00:15]} 31. Nf5 {[%emt 0:00:25]} Nc6 {[%emt 0:00:31]} 32. Nxh6 {[%emt 0:00:14]} Kg7 {[%emt 0:02:49]} 33. Rxd7 {[%emt 0:00:50]} Kxh6 {[%emt 0:06:35]} 34. Rxf7 {[%emt 0:01:03]} Kg6 {[%emt 0:00:00]} 35. Rc7 {[%emt 0:01:02]} Ne5 {[%emt 0:00:00]} 36. Be2 {[%emt 0:01:41]} Rd2 {[%emt 0:00:00]} 37. Kf1 {[%emt 0:00:21]} Kf5 {[%emt 0:00:00]} 38. b4 {[%emt 0:00:29]} Ra2 {[%emt 0:00:00]} 39. bxc5 {[%emt 0:00:17]} Rxa3 {[%emt 0:00:00]} 40. cxb6 {[%emt 0:00:59]} axb6 {[%emt 0:00:00]} 41. h4 {[%emt 0:00:26]} Ra1+ {[%emt 0:00:00]} 42. Kg2 {[%emt 0:00:02]} Ra2 {[%emt 0:00:00]} 43. Bf1 {[%emt 0:01:07]} Rd2 {[%emt 0:01:33]} 44. Rc3 {[%emt 0:00:41]} Rb2 {[%emt 0:00:35]} 45. Bd3+ {[%emt 0:00:24]} Nxd3 {[%emt 0:00:44]} 46. Rxd3 {[%emt 0:00:01]} b5 {[%emt 0:00:01]} 47. Kf3 {[%emt 0:00:29]} b4 {[%emt 0:00:19]} 48. Rd5+ {[%emt 0:00:08]} Kg6 {[%emt 0:00:52]} 49. Rb5 {[%emt 0:00:00]} b3 {[%emt 0:00:42]} 50. Ke3 {[%emt 0:00:24]} Rb1 {[%emt 0:00:15]} 51. f3 {[%emt 0:00:12]} b2 {[%emt 0:00:34]} 52. Kf4 {[%emt 0:00:01]} Kh6 {[%emt 0:00:57]} 53. Rb7 {[%emt 0:01:07]} Kg6 {[%emt 0:01:31]} 54. Kg4 {[%emt 0:00:28]} Kh6 {[%emt 0:00:10]} 55. Kf4 {[%emt 0:01:18]} Kg6 {[%emt 0:00:02]} 56. g4 {[%emt 0:00:13]} f5 {[%emt 0:01:43]} 57. Rb6+ {[%emt 0:00:07]} Kg7 {[%emt 0:01:13]} 58. Kxf5 {[%emt 0:00:09]} Rh1 {[%emt 0:00:40]} 59. Rxb2 {[%emt 0:00:07]} Rxh4 {[%emt 0:00:02]} 60. Rb7+ {[%emt 0:00:14]} Kg8 {[%emt 0:00:24]} 61. f4 {[%emt 0:00:48]} Rh6 {[%emt 0:00:14]} 62. Kg5 {[%emt 0:00:22]} Ra6 {[%emt 0:00:02]} 63. f5 {[%emt 0:00:12]} Kf8 {[%emt 0:00:35]} 64. f6 {[%emt 0:00:32]} Ra4 {[%emt 0:01:03]} 65. Kf5 {[%emt 0:00:02]} Rc4 {[%emt 0:00:28]} 66. g5 {[%emt 0:00:08]} Rc8 {[%emt 0:00:31]} 67. g6 {[%emt 0:00:52]} Rc5+ {[%emt 0:00:34]} 68. Kg4 {[%emt 0:00:10]} Rc8 {[%emt 0:00:06]} 69. Kg5 {[%emt 0:00:08]} Ra8 {[%emt 0:00:48]} 70. Kh6 {[%emt 0:00:07]} Kg8 {[%emt 0:01:21]} 71. f7+ {[%emt 0:00:12]} 1-0